[Event "EYTCC U12 Open 2019"]
[Site "Pardubice"]
[Date "2019.07.13"]
[Round "3.14"]
[White "Celik, Hasan Huseyin"]
[Black "Nemec, Jachym"]
[Result "0-1"]
[ECO "A57"]
[WhiteElo "1903"]
[BlackElo "1927"]
[Annotator "NA"]
[PlyCount "98"]
[EventDate "2019.07.11"]
[EventType "swiss"]
[EventCountry "CZE"]
[SourceTitle "playchess.com"]
[Source "ChessBase"]
[SourceQuality "1"]
[WhiteTeam "Turkey"]
[BlackTeam "Czech Republic"]
[WhiteTeamCountry "TUR"]
[BlackTeamCountry "CZE"]
[TimeControl "40/5400+30:1800+30"]

1. d4 {[%emt 0:00:00]} Nf6 {[%emt 0:00:00]} 2. c4 {[%emt 0:00:00]} c5 {[%emt 0:00:24]} 3. d5 {[%emt 0:00:00]} b5 {[%emt 0:00:17]} 4. cxb5 {[%emt 0:00:00]} g6 {[%emt 0:00:20]} 5. Nc3 {[%emt 0:00:08]} Bg7 {[%emt 0:00:09]} 6. Nf3 {[%emt 0:00:26]} O-O {[%emt 0:00:17]} 7. e4 {[%emt 0:01:41]} Qa5 {[%emt 0:00:14]} 8. Nd2 {[%emt 0:00:45]} d6 {[%emt 0:05:32]} 9. Be2 {[%emt 0:01:42]} a6 {[%emt 0:00:37]} 10. Nc4 {[%emt 0:00:06]} Qd8 {[%emt 0:00:16]} 11. b6 {[%emt 0:03:49]} Nbd7 {[%emt 0:00:24]} 12. Bf4 {[%emt 0:03:50]} Nxb6 {[%emt 0:01:07]} 13. Ne3 {[%emt 0:01:12]} Ne8 {[%emt 0:06:30]} 14. O-O {[%emt 0:02:43]} Bd7 {[%emt 0:03:40]} 15. a4 {[%emt 0:02:05]} a5 {[%emt 0:00:23]} 16. Qd2 {[%emt 0:02:15]} Nc7 {[%emt 0:02:03]} 17. Bg3 {[%emt 0:05:45]} f5 {[%emt 0:18:13]} 18. exf5 {[%emt 0:09:08]} Bxf5 {[%emt 0:00:15]} 19. Rfe1 {[%emt 0:05:07]} Rb8 {[%emt 0:03:34]} 20. Bh4 {[%emt 0:03:42]} Bh6 {[%emt 0:11:48]} 21. Rad1 {[%emt 0:02:45]} Rf7 {[%emt 0:05:19]} 22. b3 {[%emt 0:05:11]} Qf8 {[%emt 0:02:56]} 23. Bf3 {[%emt 0:02:14]} Nd7 {[%emt 0:02:17]} 24. Qa2 {[%emt 0:11:52]} Ne5 {[%emt 0:04:00]} 25. Be2 {[%emt 0:05:03]} Bxe3 {[%emt 0:05:14]} 26. fxe3 {[%emt 0:00:02]} Qh6 {[%emt 0:00:09]} 27. Bf2 {[%emt 0:00:14]} Rbf8 {[%emt 0:01:38]} 28. Rd2 {[%emt 0:11:51]} Bd3 {[%emt 0:06:09]} 29. Bxd3 {[%emt 0:00:41]} Nxd3 {[%emt 0:00:11]} 30. Rxd3 {[%emt 0:00:01]} Rxf2 {[%emt 0:00:10]} 31. Qxf2 {[%emt 0:00:13]} Rxf2 {[%emt 0:00:06]} 32. Kxf2 {[%emt 0:00:02]} Qxh2 {[%emt 0:01:03]} 33. e4 {[%emt 0:02:23]} Qe5 {[%emt 0:00:34]} 34. Rf3 {[%emt 0:00:25]} Ne8 {[%emt 0:00:23]} 35. Re2 {[%emt 0:05:11]} Nf6 {[%emt 0:00:38]} 36. Kg1 {[%emt 0:00:38]} Ng4 {[%emt 0:02:11]} 37. g3 {[%emt 0:00:07]} Qd4+ {[%emt 0:02:42]} 38. Kg2 {[%emt 0:00:04]} Ne5 {[%emt 0:00:16]} 39. Rfe3 {[%emt 0:00:01]} g5 {[%emt 0:01:45]} 40. Nb5 {[%emt 0:00:24]} Qd1 {[%emt 0:00:17]} 41. Re1 {[%emt 0:30:22]} Qh5 {[%emt 0:30:41]} 42. Rh1 {[%emt 0:01:08]} Qg6 {[%emt 0:00:16]} 43. Rhe1 {[%emt 0:01:01]} g4 {[%emt 0:00:17]} 44. Rd1 {[%emt 0:02:55]} Qh6 {[%emt 0:00:22]} 45. Kf2 {[%emt 0:07:10]} Qh2+ {[%emt 0:00:24]} 46. Kf1 {[%emt 0:00:06]} Nf3 {[%emt 0:00:39]} 47. Nc3 {[%emt 0:00:32]} Qxg3 {[%emt 0:00:27]} 48. Ke2 {[%emt 0:00:10]} Qg2+ {[%emt 0:00:11]} 49. Kd3 {[%emt 0:00:15]} Ne5# 0-1

[Event "EYTCC U12 Open 2019"]
[Site "Pardubice"]
[Date "2019.07.13"]
[Round "3.15"]
[White "Brozka, Karel"]
[Black "Portakalci, Yusuf"]
[Result "0-1"]
[ECO "A48"]
[WhiteElo "1816"]
[BlackElo "1764"]
[Annotator "NA"]
[PlyCount "70"]
[EventDate "2019.07.11"]
[EventType "swiss"]
[EventCountry "CZE"]
[SourceTitle "playchess.com"]
[Source "ChessBase"]
[SourceQuality "1"]
[WhiteTeam "Czech Republic"]
[BlackTeam "Turkey"]
[WhiteTeamCountry "CZE"]
[BlackTeamCountry "TUR"]
[TimeControl "40/5400+30:1800+30"]

1. d4 {[%emt 0:00:00]} Nf6 {[%emt 0:00:10]} 2. Nf3 {[%emt 0:00:00]} g6 {[%emt 0:00:31]} 3. Nc3 {[%emt 0:00:08]} d5 {[%emt 0:02:21]} 4. Bf4 {[%emt 0:00:19]} Bg7 {[%emt 0:00:49]} 5. e3 {[%emt 0:00:33]} O-O {[%emt 0:01:09]} 6. Be2 {[%emt 0:01:02]} a6 {[%emt 0:01:06]} 7. Ne5 {[%emt 0:01:23]} Nbd7 {[%emt 0:02:09]} 8. h4 {[%emt 0:02:04]} c5 {[%emt 0:08:37]} 9. h5 {[%emt 0:02:11]} Qa5 {[%emt 0:11:33]} 10. Qd2 {[%emt 0:03:34]} Rd8 {[%emt 0:12:19]} 11. hxg6 {[%emt 0:03:09]} fxg6 {[%emt 0:04:01]} 12. Rh4 {[%emt 0:24:26]} Nf8 {[%emt 0:09:10]} 13. Bh6 {[%emt 0:03:48]} Ne6 {[%emt 0:10:05]} 14. Bxg7 {[%emt 0:01:03]} Kxg7 {[%emt 0:02:11]} 15. O-O-O {[%emt 0:05:16]} Qc7 {[%emt 0:07:34]} 16. Rdh1 {[%emt 0:03:33]} b5 {[%emt 0:03:11]} 17. Qd3 {[%emt 0:02:13]} Nf8 {[%emt 0:01:59]} 18. g4 {[%emt 0:27:04]} c4 {[%emt 0:02:51]} 19. Qd1 {[%emt 0:01:37]} Be6 {[%emt 0:03:40]} 20. Qg1 {[%emt 0:02:42]} Bg8 {[%emt 0:02:30]} 21. g5 {[%emt 0:03:28]} N6d7 {[%emt 0:00:59]} 22. Qh2 {[%emt 0:03:55]} Nxe5 {[%emt 0:00:25]} 23. dxe5 {[%emt 0:00:53]} b4 {[%emt 0:01:02]} 24. Na4 {[%emt 0:01:03]} Qc6 {[%emt 0:01:56]} 25. c3 {[%emt 0:04:36]} Rab8 {[%emt 0:03:21]} 26. Qf4 {[%emt 0:01:23]} bxc3 {[%emt 0:01:49]} 27. e6 {[%emt 0:00:18]} cxb2+ {[%emt 0:00:48]} 28. Kb1 {[%emt 0:00:34]} Bxe6 {[%emt 0:00:28]} 29. Qd4+ {[%emt 0:00:45]} Kg8 {[%emt 0:00:33]} 30. Nc5 {[%emt 0:00:27]} Bf5+ {[%emt 0:00:17]} 31. e4 {[%emt 0:00:18]} dxe4 {[%emt 0:00:39]} 32. Bxc4+ {[%emt 0:00:30]} e6 {[%emt 0:00:13]} 33. Qe3 {[%emt 0:00:23]} Rdc8 {[%emt 0:01:37]} 34. Bxe6+ {[%emt 0:01:39]} Bxe6 {[%emt 0:00:20]} 35. Qxe4 {[%emt 0:00:31]} Bf5 {[%emt 0:00:11]} 0-1

[Event "EYTCC U12 Open 2019"]
[Site "Pardubice"]
[Date "2019.07.13"]
[Round "3.16"]
[White "Durak, Can"]
[Black "Werner, Hong Quan Dan"]
[Result "1-0"]
[ECO "E61"]
[WhiteElo "1753"]
[BlackElo "1734"]
[Annotator "NA"]
[PlyCount "99"]
[EventDate "2019.07.11"]
[EventType "swiss"]
[EventCountry "CZE"]
[SourceTitle "playchess.com"]
[Source "ChessBase"]
[SourceQuality "1"]
[WhiteTeam "Turkey"]
[BlackTeam "Czech Republic"]
[WhiteTeamCountry "TUR"]
[BlackTeamCountry "CZE"]
[TimeControl "40/5400+30:1800+30"]

1. d4 Nf6 2. c4 g6 3. Nc3 Bg7 4. Nf3 O-O 5. Bg5 h6 6. Bh4 d6 7. e3 c5 8. Be2 Nc6 9. O-O cxd4 10. exd4 Bd7 11. d5 Nb4 12. Rc1 a5 13. Qd2 Na6 14. Rfd1 Nc5 15. Bxf6 Bxf6 16. Qxh6 Bg7 17. Qh4 Re8 18. Ng5 f6 19. Nge4 b6 20. Nxc5 bxc5 21. Bd3 Kf7 22. Qg3 f5 23. Re1 Be5 24. Qf3 Rb8 25. Re2 Rh8 26. h3 Rh4 27. Rce1 Qh8 28. Ne4 Rf4 29. Ng5+ Kf6 30. Qe3 Rh4 31. Nf3 f4 32. Qc1 Rh5 33. Nxe5 dxe5 34. Qc3 Kf7 35. Rxe5 Rxe5 36. Rxe5 f3 37. Re3 Qxc3 38. bxc3 Rb2 39. Rxf3+ Kg7 40. Re3 Kf6 41. Re2 Rb6 42. g4 a4 43. Kf1 a3 44. Bc2 Rb2 45. Bb3 Rb1+ 46. Kg2 Rb2 47. Kf3 Kg5 48. Rxe7 Ba4 49. Bxa4 Rxa2 50. Re1 1-0

[Event "EYTCC U12 Open 2019"]
[Site "Pardubice"]
[Date "2019.07.13"]
[Round "3.17"]
[White "Smolik, Jachym"]
[Black "Day, Tobias"]
[Result "1/2-1/2"]
[ECO "A83"]
[WhiteElo "1757"]
[BlackElo "1826"]
[Annotator "NA"]
[PlyCount "98"]
[EventDate "2019.07.11"]
[EventType "swiss"]
[EventCountry "CZE"]
[SourceTitle "playchess.com"]
[Source "ChessBase"]
[SourceQuality "1"]
[WhiteTeam "Czech Republic"]
[BlackTeam "Czech Republic"]
[WhiteTeamCountry "CZE"]
[BlackTeamCountry "CZE"]
[TimeControl "40/5400+30:1800+30"]

1. d4 {[%emt 0:00:00]} f5 {[%emt 0:00:00]} 2. e4 {[%emt 0:00:00]} fxe4 {[%emt 0:00:15]} 3. Nc3 {[%emt 0:00:01]} Nf6 {[%emt 0:00:19]} 4. Bg5 {[%emt 0:00:15]} Nc6 {[%emt 0:01:19]} 5. d5 {[%emt 0:05:18]} Ne5 {[%emt 0:01:17]} 6. Qd4 {[%emt 0:01:28]} Nf7 {[%emt 0:06:28]} 7. Bxf6 {[%emt 0:01:24]} exf6 {[%emt 0:00:56]} 8. Nxe4 {[%emt 0:01:17]} Be7 {[%emt 0:02:07]} 9. O-O-O {[%emt 0:07:54]} O-O {[%emt 0:08:43]} 10. g4 {[%emt 0:08:55]} d6 {[%emt 0:06:02]} 11. Ng3 {[%emt 0:04:21]} Ne5 {[%emt 0:14:16]} 12. h3 {[%emt 0:05:53]} f5 {[%emt 0:11:44]} 13. f4 {[%emt 0:02:22]} Ng6 {[%emt 0:01:59]} 14. Bd3 {[%emt 0:05:22]} Nxf4 {[%emt 0:11:16]} 15. Bxf5 {[%emt 0:08:06]} g6 {[%emt 0:07:50]} 16. Kb1 {[%emt 0:04:04]} gxf5 {[%emt 0:05:04]} 17. Qxf4 {[%emt 0:00:08]} fxg4 {[%emt 0:00:55]} 18. Qe4 {[%emt 0:00:28]} Qe8 {[%emt 0:08:05]} 19. hxg4 {[%emt 0:01:44]} Qf7 {[%emt 0:01:31]} 20. N1e2 {[%emt 0:01:24]} Bg5 {[%emt 0:02:59]} 21. Rh5 {[%emt 0:01:40]} h6 {[%emt 0:02:14]} 22. Nd4 {[%emt 0:00:37]} Re8 {[%emt 0:00:51]} 23. Ne6 {[%emt 0:01:12]} Bxe6 {[%emt 0:00:52]} 24. dxe6 {[%emt 0:00:02]} Rxe6 {[%emt 0:00:39]} 25. Qxb7 {[%emt 0:04:13]} Rae8 {[%emt 0:00:44]} 26. Nf5 {[%emt 0:02:28]} Re1 {[%emt 0:01:31]} 27. Rh1 {[%emt 0:02:08]} Rxd1+ {[%emt 0:00:16]} 28. Rxd1 {[%emt 0:00:01]} Re2 {[%emt 0:01:41]} 29. Qxa7 {[%emt 0:06:05]} Qc4 {[%emt 0:00:50]} 30. Qb8+ {[%emt 0:00:29]} Kh7 {[%emt 0:00:52]} 31. Qb3 {[%emt 0:00:12]} Qxb3 {[%emt 0:00:18]} 32. axb3 {[%emt 0:00:06]} Rg2 {[%emt 0:00:17]} 33. Rd4 {[%emt 0:00:50]} Kg6 {[%emt 0:00:25]} 34. Rc4 {[%emt 0:01:35]} h5 {[%emt 0:00:53]} 35. Rxc7 {[%emt 0:02:46]} hxg4 {[%emt 0:00:18]} 36. Nxd6 {[%emt 0:00:10]} g3 {[%emt 0:00:51]} 37. Rc3 {[%emt 0:04:08]} Rg1+ {[%emt 0:00:35]} 38. Ka2 {[%emt 0:00:10]} g2 {[%emt 0:00:03]} 39. Rg3 {[%emt 0:00:08]} Kh5 {[%emt 0:00:23]} 40. Ne4 {[%emt 0:00:51]} Bf4 {[%emt 0:00:21]} 41. Rg8 {[%emt 0:31:27]} Kh4 {[%emt 0:30:36]} 42. Nf2 {[%emt 0:01:12]} Be3 {[%emt 0:01:03]} 43. Ne4 {[%emt 0:05:47]} Bd4 {[%emt 0:00:49]} 44. Nd2 {[%emt 0:01:22]} Kh3 {[%emt 0:00:38]} 45. Nf3 {[%emt 0:05:00]} Rd1 {[%emt 0:00:07]} 46. Rd8 {[%emt 0:00:00]} Kg3 {[%emt 0:00:00]} 47. Nxd4 {[%emt 0:00:00]} Rxd4 {[%emt 0:00:00]} 48. Rxd4 {[%emt 0:00:00]} g1=Q {[%emt 0:00:00]} 49. Ra4 {[%emt 0:00:00]} Qc5 1/2-1/2

[Event "EYTCC U12 Open 2019"]
[Site "Pardubice"]
[Date "2019.07.13"]
[Round "3.18"]
[White "Winter, Ondrej"]
[Black "Fizer, Marek"]
[Result "0-1"]
[ECO "B50"]
[WhiteElo "1725"]
[BlackElo "1624"]
[Annotator "NA"]
[PlyCount "82"]
[EventDate "2019.07.11"]
[EventType "swiss"]
[EventCountry "CZE"]
[SourceTitle "playchess.com"]
[Source "ChessBase"]
[SourceQuality "1"]
[WhiteTeam "Czech Republic"]
[BlackTeam "Czech Republic"]
[WhiteTeamCountry "CZE"]
[BlackTeamCountry "CZE"]
[TimeControl "40/5400+30:1800+30"]

1. e4 {[%emt 0:00:00]} c5 {[%emt 0:00:00]} 2. Nf3 {[%emt 0:00:00]} d6 {[%emt 0:00:24]} 3. c3 {[%emt 0:00:05]} Nf6 {[%emt 0:00:28]} 4. Qc2 {[%emt 0:01:39]} Nc6 {[%emt 0:01:14]} 5. Bb5 {[%emt 0:00:36]} Bd7 {[%emt 0:01:41]} 6. O-O {[%emt 0:00:11]} e6 {[%emt 0:01:50]} 7. d4 {[%emt 0:00:33]} cxd4 {[%emt 0:01:46]} 8. cxd4 {[%emt 0:00:31]} Be7 {[%emt 0:01:40]} 9. Nc3 {[%emt 0:01:08]} O-O {[%emt 0:00:35]} 10. Be3 {[%emt 0:02:29]} Rc8 {[%emt 0:02:58]} 11. a3 {[%emt 0:03:15]} e5 {[%emt 0:05:40]} 12. Bxc6 {[%emt 0:02:11]} Bxc6 13. d5 {[%emt 0:00:58]} Be8 {[%emt 0:07:32]} 14. Bxa7 {[%emt 0:03:54]} b6 {[%emt 0:00:24]} 15. Qb3 {[%emt 0:00:12]} Nd7 {[%emt 0:00:04]} 16. Na4 {[%emt 0:04:25]} Ra8 {[%emt 0:00:10]} 17. Bxb6 {[%emt 0:00:18]} Nxb6 {[%emt 0:00:06]} 18. Qxb6 {[%emt 0:00:07]} Rxa4 {[%emt 0:00:25]} 19. Qxd8 {[%emt 0:00:10]} Bxd8 {[%emt 0:00:09]} 20. Rfe1 {[%emt 0:00:27]} f5 {[%emt 0:01:42]} 21. exf5 {[%emt 0:00:44]} Rxf5 {[%emt 0:00:12]} 22. Rac1 {[%emt 0:02:49]} Bb6 {[%emt 0:01:47]} 23. Rc8 {[%emt 0:03:57]} Kf7 {[%emt 0:01:46]} 24. Rb8 {[%emt 0:04:03]} Ba7 {[%emt 0:02:02]} 25. Rb7+ {[%emt 0:03:02]} Kf6 {[%emt 0:00:50]} 26. h3 {[%emt 0:10:06]} Bf7 {[%emt 0:01:47]} 27. Rd7 {[%emt 0:07:15]} Ra6 {[%emt 0:01:19]} 28. b4 {[%emt 0:20:38]} Be8 {[%emt 0:03:33]} 29. b5 {[%emt 0:00:39]} Bxd7 {[%emt 0:00:12]} 30. bxa6 {[%emt 0:00:04]} Bb5 {[%emt 0:01:04]} 31. Re4 {[%emt 0:00:20]} Rf4 {[%emt 0:00:18]} 32. Rxf4+ {[%emt 0:01:52]} exf4 {[%emt 0:00:14]} 33. h4 {[%emt 0:02:45]} h6 {[%emt 0:00:33]} 34. h5 {[%emt 0:02:15]} Bxa6 {[%emt 0:00:58]} 35. Nh4 {[%emt 0:00:08]} Be2 {[%emt 0:01:46]} 36. Ng6 {[%emt 0:00:28]} Kg5 {[%emt 0:03:26]} 37. a4 {[%emt 0:01:19]} Bxh5 {[%emt 0:00:46]} 38. Nf8 {[%emt 0:00:35]} Bf7 {[%emt 0:00:30]} 39. Ne6+ {[%emt 0:02:02]} Bxe6 {[%emt 0:00:40]} 40. dxe6 {[%emt 0:00:08]} Kf6 {[%emt 0:00:08]} 41. Kf1 {[%emt 0:30:09]} Kxe6 {[%emt 0:30:07]} 0-1

[Event "EYTCC U12 Open 2019"]
[Site "Pardubice"]
[Date "2019.07.13"]
[Round "3.19"]
[White "Lang, Simon"]
[Black "Hladky, Tadeas"]
[Result "0-1"]
[ECO "D15"]
[WhiteElo "1506"]
[BlackElo "1638"]
[Annotator "NA"]
[PlyCount "94"]
[EventDate "2019.07.11"]
[EventType "swiss"]
[EventCountry "CZE"]
[SourceTitle "playchess.com"]
[Source "ChessBase"]
[SourceQuality "1"]
[WhiteTeam "Czech Republic"]
[BlackTeam "Czech Republic"]
[WhiteTeamCountry "CZE"]
[BlackTeamCountry "CZE"]
[TimeControl "40/5400+30:1800+30"]

1. d4 {[%emt 0:00:00]} d5 {[%emt 0:00:00]} 2. c4 {[%emt 0:00:38]} c6 {[%emt 0:00:00]} 3. Nc3 {[%emt 0:02:12]} Nf6 {[%emt 0:00:00]} 4. Nf3 {[%emt 0:01:24]} dxc4 {[%emt 0:00:00]} 5. e4 {[%emt 0:01:26]} b5 {[%emt 0:00:28]} 6. Qc2 {[%emt 0:06:07]} a6 {[%emt 0:00:53]} 7. Be2 {[%emt 0:01:46]} e6 {[%emt 0:00:12]} 8. Bf4 {[%emt 0:02:05]} Bb7 {[%emt 0:00:33]} 9. Rd1 {[%emt 0:02:54]} Be7 {[%emt 0:01:43]} 10. O-O {[%emt 0:02:40]} O-O {[%emt 0:00:21]} 11. Rfe1 {[%emt 0:01:48]} Nbd7 {[%emt 0:05:09]} 12. Bf1 {[%emt 0:14:08]} Nb6 {[%emt 0:02:23]} 13. a3 {[%emt 0:02:27]} Re8 {[%emt 0:01:36]} 14. g3 {[%emt 0:03:30]} Qc8 {[%emt 0:07:59]} 15. Bh3 {[%emt 0:04:41]} Nbd7 {[%emt 0:12:56]} 16. Re2 {[%emt 0:08:53]} Qd8 {[%emt 0:09:50]} 17. Red2 {[%emt 0:03:53]} Nb6 {[%emt 0:00:28]} 18. Bg2 {[%emt 0:01:41]} h6 {[%emt 0:02:29]} 19. Ne5 {[%emt 0:10:39]} Bd6 {[%emt 0:07:21]} 20. Be3 {[%emt 0:01:39]} Bc7 {[%emt 0:01:58]} 21. f4 {[%emt 0:01:50]} Qe7 {[%emt 0:02:20]} 22. Re2 {[%emt 0:02:11]} Rad8 {[%emt 0:01:41]} 23. f5 {[%emt 0:03:51]} exf5 {[%emt 0:01:18]} 24. exf5 {[%emt 0:00:19]} Nbd5 {[%emt 0:02:40]} 25. Nxd5 {[%emt 0:02:39]} Nxd5 {[%emt 0:03:54]} 26. Bxd5 {[%emt 0:03:11]} Rxd5 {[%emt 0:02:27]} 27. Rde1 {[%emt 0:02:00]} Bxe5 {[%emt 0:01:24]} 28. Bf2 {[%emt 0:01:11]} Qf6 {[%emt 0:06:45]} 29. dxe5 {[%emt 0:00:30]} Rdxe5 {[%emt 0:00:04]} 30. Rxe5 {[%emt 0:01:48]} Rxe5 {[%emt 0:00:13]} 31. Rxe5 {[%emt 0:02:22]} Qxe5 {[%emt 0:00:06]} 32. g4 {[%emt 0:02:56]} c5 {[%emt 0:00:36]} 33. Bg3 {[%emt 0:01:16]} Qd4+ {[%emt 0:01:03]} 34. Qf2 {[%emt 0:01:19]} Qd1+ {[%emt 0:01:34]} 35. Qe1 {[%emt 0:00:48]} Qf3 {[%emt 0:04:13]} 36. Qd2 {[%emt 0:01:02]} Kh7 {[%emt 0:02:40]} 37. Bf4 {[%emt 0:02:17]} Qxg4+ {[%emt 0:01:18]} 38. Bg3 {[%emt 0:00:05]} Qf3 {[%emt 0:00:23]} 39. Bf4 {[%emt 0:00:06]} Be4 {[%emt 0:03:10]} 40. Bd6 {[%emt 0:00:33]} Qxf5 {[%emt 0:01:34]} 41. Bf8 {[%emt 0:30:12]} Qf3 {[%emt 0:31:21]} 42. Bxc5 {[%emt 0:00:13]} a5 {[%emt 0:01:07]} 43. Bb6 {[%emt 0:00:24]} b4 {[%emt 0:03:09]} 44. Bxa5 {[%emt 0:01:07]} c3 {[%emt 0:01:32]} 45. bxc3 {[%emt 0:00:36]} b3 {[%emt 0:00:10]} 46. c4 {[%emt 0:02:35]} Qh1+ {[%emt 0:00:16]} 47. Kf2 {[%emt 0:00:13]} Qg2+ {[%emt 0:00:06]} 0-1

[Event "EYTCC U12 Open 2019"]
[Site "Pardubice"]
[Date "2019.07.13"]
[Round "3.20"]
[White "Bouska, Jiri"]
[Black "Juhanak, Daniel"]
[Result "0-1"]
[ECO "B13"]
[WhiteElo "1391"]
[BlackElo "1510"]
[Annotator "NA"]
[PlyCount "120"]
[EventDate "2019.07.11"]
[EventType "swiss"]
[EventCountry "CZE"]
[SourceTitle "playchess.com"]
[Source "ChessBase"]
[SourceQuality "1"]
[WhiteTeam "Czech Republic"]
[BlackTeam "Czech Republic"]
[WhiteTeamCountry "CZE"]
[BlackTeamCountry "CZE"]
[TimeControl "40/5400+30:1800+30"]

1. e4 {[%emt 0:00:00]} c6 {[%emt 0:00:00]} 2. d4 {[%emt 0:00:09]} d5 {[%emt 0:00:24]} 3. exd5 {[%emt 0:00:22]} cxd5 {[%emt 0:00:20]} 4. Bd3 {[%emt 0:01:14]} Nc6 {[%emt 0:01:37]} 5. c3 {[%emt 0:00:49]} Nf6 {[%emt 0:01:31]} 6. h3 {[%emt 0:00:39]} e5 {[%emt 0:03:09]} 7. dxe5 {[%emt 0:00:40]} Nxe5 {[%emt 0:00:31]} 8. Qe2 {[%emt 0:01:26]} Qe7 {[%emt 0:00:58]} 9. Bb5+ {[%emt 0:00:58]} Bd7 {[%emt 0:02:31]} 10. Bxd7+ {[%emt 0:00:27]} Nfxd7 {[%emt 0:02:07]} 11. Be3 {[%emt 0:01:00]} Nc4 {[%emt 0:04:55]} 12. Nf3 {[%emt 0:01:01]} Nxe3 {[%emt 0:05:27]} 13. fxe3 {[%emt 0:00:18]} Nf6 {[%emt 0:02:04]} 14. Nbd2 {[%emt 0:00:46]} Qc7 {[%emt 0:03:07]} 15. O-O {[%emt 0:00:40]} Bc5 {[%emt 0:02:29]} 16. Qb5+ {[%emt 0:00:30]} Qc6 {[%emt 0:03:55]} 17. Qxc6+ {[%emt 0:00:32]} bxc6 {[%emt 0:00:31]} 18. Nd4 {[%emt 0:00:15]} Rc8 {[%emt 0:06:45]} 19. N2b3 {[%emt 0:00:36]} Bf8 {[%emt 0:15:30]} 20. Rac1 {[%emt 0:00:56]} c5 {[%emt 0:03:26]} 21. Ne2 {[%emt 0:01:14]} c4 {[%emt 0:03:34]} 22. Nbd4 {[%emt 0:00:29]} Bc5 {[%emt 0:02:19]} 23. Rf5 {[%emt 0:00:33]} O-O {[%emt 0:03:51]} 24. Rcf1 {[%emt 0:00:36]} Rfe8 {[%emt 0:02:12]} 25. R1f3 {[%emt 0:00:44]} a5 {[%emt 0:02:51]} 26. Rg5 {[%emt 0:00:30]} h6 {[%emt 0:01:46]} 27. Rgf5 {[%emt 0:01:34]} a4 {[%emt 0:00:48]} 28. Nf4 {[%emt 0:01:23]} Red8 {[%emt 0:02:31]} 29. Rg3 {[%emt 0:06:00]} Kh7 {[%emt 0:02:05]} 30. Nh5 {[%emt 0:02:18]} Nxh5 {[%emt 0:02:04]} 31. Rxh5 {[%emt 0:00:21]} g6 {[%emt 0:02:52]} 32. Rh4 {[%emt 0:00:21]} Re8 {[%emt 0:02:59]} 33. Rf4 {[%emt 0:00:49]} f5 {[%emt 0:02:00]} 34. Rgf3 {[%emt 0:00:23]} Bd6 {[%emt 0:04:57]} 35. Rh4 Rb8 {[%emt 0:00:54]} 36. Nc6 {[%emt 0:01:53]} Rb6 {[%emt 0:00:53]} 37. Na5 {[%emt 0:04:05]} Ra8 {[%emt 0:01:40]} 38. Nxc4 {[%emt 0:00:12]} dxc4 {[%emt 0:01:29]} 39. Rxc4 {[%emt 0:00:13]} Rxb2 {[%emt 0:01:00]} 40. g4 {[%emt 0:00:17]} Rb1+ {[%emt 0:00:57]} 41. Kg2 {[%emt 0:30:13]} Rb2+ {[%emt 0:30:22]} 42. Kf1 {[%emt 0:00:12]} Rb5 {[%emt 0:01:20]} 43. Rd4 {[%emt 0:00:19]} Be5 {[%emt 0:00:00]} 44. Rd7+ Bg7 {[%emt 0:00:00]} 45. e4 {[%emt 0:00:00]} fxe4 {[%emt 0:00:00]} 46. Rff7 {[%emt 0:00:00]} Rg8 {[%emt 0:00:00]} 47. Ra7 {[%emt 0:00:00]} Rb1+ {[%emt 0:00:00]} 48. Kg2 {[%emt 0:00:00]} Rb2+ {[%emt 0:00:00]} 49. Rf2 {[%emt 0:00:00]} Rxf2+ {[%emt 0:00:00]} 50. Kxf2 {[%emt 0:00:00]} Rf8+ {[%emt 0:00:00]} 51. Ke3 {[%emt 0:00:00]} Rf3+ {[%emt 0:00:00]} 52. Kxe4 {[%emt 0:00:00]} Rxc3 {[%emt 0:00:00]} 53. Rxa4 {[%emt 0:00:00]} Rxh3 {[%emt 0:00:00]} 54. Ra6 {[%emt 0:00:00]} Rh4 {[%emt 0:00:00]} 55. Kf4 {[%emt 0:00:00]} h5 {[%emt 0:00:00]} 56. Kf3 {[%emt 0:00:00]} Rxg4 {[%emt 0:00:00]} 57. a4 {[%emt 0:00:00]} Kh6 {[%emt 0:00:00]} 58. Ra8 {[%emt 0:00:00]} Kh7 {[%emt 0:00:00]} 59. a5 {[%emt 0:00:00]} Ra4 {[%emt 0:00:00]} 60. a6 {[%emt 0:00:00]} h4 {[%emt 0:00:00]} 0-1

[Event "EYTCC U12 Open 2019"]
[Site "Pardubice"]
[Date "2019.07.13"]
[Round "3.21"]
[White "Bakiev, Diyor"]
[Black "Herega, Nejc"]
[Result "1-0"]
[ECO "B22"]
[WhiteElo "2121"]
[BlackElo "1939"]
[Annotator "NA"]
[PlyCount "101"]
[EventDate "2019.07.11"]
[EventType "swiss"]
[EventCountry "CZE"]
[SourceTitle "playchess.com"]
[Source "ChessBase"]
[SourceQuality "1"]
[WhiteTeam "Germany"]
[BlackTeam "Slovenia"]
[WhiteTeamCountry "GER"]
[BlackTeamCountry "SLO"]
[TimeControl "40/5400+30:1800+30"]

1. e4 {[%emt 0:00:00]} c5 {[%emt 0:00:00]} 2. c3 {[%emt 0:00:00]} g6 {[%emt 0:00:00]} 3. d4 {[%emt 0:00:00]} cxd4 {[%emt 0:00:00]} 4. cxd4 {[%emt 0:00:00]} d5 {[%emt 0:00:00]} 5. e5 {[%emt 0:00:18]} Bg7 {[%emt 0:00:22]} 6. Nc3 {[%emt 0:00:11]} Nc6 {[%emt 0:00:40]} 7. Bb5 {[%emt 0:00:20]} Nh6 {[%emt 0:01:30]} 8. h3 {[%emt 0:00:13]} O-O {[%emt 0:01:17]} 9. Nf3 {[%emt 0:00:02]} a6 {[%emt 0:03:50]} 10. Bxc6 {[%emt 0:00:45]} bxc6 {[%emt 0:00:04]} 11. O-O {[%emt 0:00:21]} f6 {[%emt 0:04:37]} 12. exf6 {[%emt 0:02:29]} exf6 {[%emt 0:03:22]} 13. Re1 {[%emt 0:03:46]} Re8 {[%emt 0:06:41]} 14. Bf4 {[%emt 0:06:05]} Rxe1+ {[%emt 0:07:09]} 15. Qxe1 {[%emt 0:00:41]} Ra7 {[%emt 0:01:14]} 16. Na4 {[%emt 0:05:05]} Re7 {[%emt 0:04:59]} 17. Qc1 {[%emt 0:09:40]} g5 {[%emt 0:07:49]} 18. Bh2 {[%emt 0:20:09]} Qe8 {[%emt 0:02:06]} 19. Qc3 {[%emt 0:06:11]} g4 {[%emt 0:05:32]} 20. hxg4 {[%emt 0:01:46]} Bxg4 {[%emt 0:01:11]} 21. Bf4 {[%emt 0:07:03]} Re4 {[%emt 0:08:15]} 22. Bxh6 {[%emt 0:04:31]} Bxh6 {[%emt 0:00:33]} 23. Nc5 {[%emt 0:00:47]} Re2 {[%emt 0:02:43]} 24. Nh2 {[%emt 0:04:58]} Bh5 {[%emt 0:04:42]} 25. Nf1 {[%emt 0:02:15]} Bg6 {[%emt 0:03:20]} 26. b3 {[%emt 0:10:37]} Bg5 {[%emt 0:07:51]} 27. Nxa6 {[%emt 0:03:54]} Rc2 {[%emt 0:03:52]} 28. Qf3 {[%emt 0:00:56]} Be4 {[%emt 0:03:13]} 29. Qg3 {[%emt 0:00:34]} Qg6 {[%emt 0:03:46]} 30. Nc5 {[%emt 0:02:01]} Bf5 {[%emt 0:03:07]} 31. Ne3 {[%emt 0:04:18]} Re2 {[%emt 0:02:11]} 32. Nxf5 {[%emt 0:01:15]} Qxf5 {[%emt 0:00:01]} 33. a4 {[%emt 0:02:54]} Kh8 {[%emt 0:01:21]} 34. Qf3 {[%emt 0:00:36]} Qc2 {[%emt 0:00:31]} 35. a5 {[%emt 0:00:23]} Qb2 {[%emt 0:01:46]} 36. Rf1 {[%emt 0:00:19]} Re7 {[%emt 0:00:57]} 37. Rd1 {[%emt 0:00:56]} Kg7 {[%emt 0:02:48]} 38. a6 {[%emt 0:00:19]} Qa3 {[%emt 0:01:35]} 39. Qf5 {[%emt 0:00:56]} h6 {[%emt 0:00:24]} 40. Ne6+ {[%emt 0:01:14]} Kf7 {[%emt 0:00:01]} 41. Qh7+ {[%emt 0:01:45]} Ke8 {[%emt 0:01:06]} 42. Qg8+ {[%emt 0:01:03]} Kd7 {[%emt 0:00:22]} 43. Qd8+ {[%emt 0:04:35]} Kxe6 {[%emt 0:00:11]} 44. Re1+ {[%emt 0:00:04]} Kf5 {[%emt 0:00:06]} 45. Qxe7 {[%emt 0:00:13]} Qxa6 {[%emt 0:00:10]} 46. Qh7+ {[%emt 0:01:01]} Kg4 {[%emt 0:00:33]} 47. f3+ {[%emt 0:00:20]} Kg3 {[%emt 0:00:02]} 48. f4 {[%emt 0:18:38]} Bxf4 {[%emt 0:03:47]} 49. Qf5 {[%emt 0:01:35]} Bc7 {[%emt 0:02:12]} 50. Qh3+ {[%emt 0:00:54]} Kf4 {[%emt 0:00:06]} 51. Qh2+ {[%emt 0:00:27]} 1-0